Cogmind - Beta 17 @@@ ROGUE MODE // 2026.07.14 @ 13:08:13 // Winter2019/RPGLIKE Player: Gallgagger Result: Destroyed by NK-0LA with NK-0LA's Tesla Doomcannon Performance ------------- Evolutions (1) 500 Regions Visited (6) 1200 Robots Destroyed (0) 0 Value Destroyed (0) 0 Prototype IDs (2) 40 Alien Tech Used (0) 0 Bonus (593) 593 TOTAL SCORE: 2333 Bonus ------- Pacifist 200 Follower Combat Kills 93 Aligned with FarCom 300 Cogmind --------- Core Integrity 0/2050 Matter 174/300 Energy 1307/1600 System Corruption 15% Temperature Cool (0) Movement Core (50) Location -8/Mines Parts ------- > --- POWER (1) -------- (None) > --- PROPULSION (2) --- (None) > --- UTILITY (1) ------ Superbattery > --- WEAPON (1) ------- (None) > --- INVENTORY (0) ---- (None) Peak State ------------ > --- POWER ------------ (None) > --- PROPULSION ------- Flight Unit Flight Unit > --- UTILITY ---------- Superbattery > --- WEAPON ----------- Field Lobotomy Kit > --- INVENTORY -------- (None) [Rating: 22] Favorites ----------- Power None Propulsion Flight Unit Wheel Compact Wheel Flight Unit Flight Unit Utility Superbattery Storage Superbattery Weapon Field Lobotomy Kit Special Weapon Field Lobotomy Kit Build | -11 -10 -10 -9 -9 -9 -8 ------- Run | Yrd Mat Min Mat Min Exi Min Slots Evolved 1 | . . . 1 . . . Power . | . . . . . . . Propulsion 1 | . . . 1 . . . Utility . | . . . . . . . Weapon . | . . . . . . . Parts Attached 5 | . . 1 2 . 2 . Power . | . . . . . . . Engine . | . . . . . . . Core . | . . . . . . . Reactor . | . . . . . . . Propulsion 3 | . . 1 2 . . . Treads . | . . . . . . . Leg . | . . . . . . . Wheel 1 | . . 1 . . . . Hover . | . . . . . . . Flight 2 | . . . 2 . . . Utility 1 | . . . . . 1 . Device . | . . . . . . . Storage 1 | . . . . . 1 . Processor . | . . . . . . . Hackware . | . . . . . . . Protection . | . . . . . . . Artifact . | . . . . . . . Weapon 1 | . . . . . 1 . Energy Gun . | . . . . . . . Energy Cannon . | . . . . . . . Ballistic Gun . | . . . . . . . Ballistic Cannon . | . . . . . . . Launcher . | . . . . . . . Special Weapon 1 | . . . . . 1 . Impact Weapon . | . . . . . . . Slashing Weapon . | . . . . . . . Piercing Weapon . | . . . . . . . Special Melee Weapon . | . . . . . . . Unidentified Prototypes 2 | . . . . . 2 . Parts Lost 3 | . . . . . . 3 Power . | . . . . . . . Propulsion 2 | . . . . . . 2 Utility . | . . . . . . . Weapon 1 | . . . . . . 1 Highest Loss Streak 2 | . . . . . . 2 To Critical Strikes . | . . . . . . . Average Backups . | . . . . . . . Power . | . . . . . . . Propulsion . | . . . . . . . Utility . | . . . . . . . Weapon . | . . . . . . . Tool/Special . | . . . . . . . Unused Backups . | . . . . . . . Power . | . . . . . . . Propulsion . | . . . . . . . Utility . | . . . . . . . Weapon . | . . . . . . . Tool/Special . | . . . . . . . Average Slot Usage (%) 30 | . . 7 37 40 56 53 Wheel 3 | . . 7 4 . . . Flight 19 | . . . 33 40 40 18 Storage 4 | . . . . . 8 20 Special Weapon 3 | . . . . . 8 15 Peak Build Rating 22 | . . 1 2 2 22 22 Average Rating 4 | . . . 1 2 11 18 On Entrance 3 | . . . 1 2 2 22 Avg Prop Armor Cover (%) 18 | . . 18 18 . . . Naked Turns 218 | . 21 197 . . . . Heaviest Build 12 | . . . . . 12 12 Greatest Support 18 | 3 3 3 8 8 18 18 Greatest Overweight (x) . | . . . . . . . Average Overweight (x) . | . . . . . . . Largest Inventory Capacity . | . . . . . . . Average Capacity . | . . . . . . . Most Carried . | . . . . . . . Average Carried . | . . . . . . . Final Capacity . | . . . . . . . Final Carried . | . . . . . . . Class Distribution -------------------- 100% | Mutant Dominant Class ---------------- Mutant | -10/Materials Mutant | -10/Mines Mutant | -9/Materials Mutant | -9/Mines Mutant | -9/Exiles Mutant | -8/Mines Resources | -11 -10 -10 -9 -9 -9 -8 ----------- Run | Yrd Mat Min Mat Min Exi Min Matter Collected 115 | 69 . 46 . . . . Remotely . | . . . . . . . Salvage Created . | . . . . . . . Parts . | . . . . . . . Haulers Intercepted . | . . . . . . . Recyclers Shooed . | . . . . . . . Parts Field Recycled . | . . . . . . . Retrieved Matter . | . . . . . . . Parts Self-Destructed . | . . . . . . . Prevented . | . . . . . . . Parts Restored . | . . . . . . . Kills | -11 -10 -10 -9 -9 -9 -8 ------- Run | Yrd Mat Min Mat Min Exi Min Combat Hostiles Destroyed . | . . . . . . . Classes Destroyed . | . . . . . . . Best Kill Streak . | . . . . . . . Combat Bots Only . | . . . . . . . Max Kills in Single Turn . | . . . . . . . Gunslinging . | . . . . . . . Exploded . | . . . . . . . Melee . | . . . . . . . Uniques/NPCs Destroyed . | . . . . . . . Combat | -11 -10 -10 -9 -9 -9 -8 -------- Run | Yrd Mat Min Mat Min Exi Min Hostile Shots Fired 191 | . . 9 69 . . 113 Missed 77 | . . 4 40 . . 33 Hits 114 | . . 5 29 . . 80 Projectile 114 | . . 5 29 . . 80 Critical Strikes 3 | . . 1 1 . . 1 Damage Taken 2363 | . . 67 365 . 40 1891 Core 2177 | . . 65 339 . 32 1741 Absorbed by Shields . | . . . . . . . Redirected to Core 690 | . . 8 90 . 32 560 Core Remaining (%) 94 | 100 . 89 . . . . Volleys Fired . | . . . . . . . Largest . | . . . . . . . Hottest . | . . . . . . . Shots Fired . | . . . . . . . Gun . | . . . . . . . Cannon . | . . . . . . . Launcher . | . . . . . . . Special . | . . . . . . . Kinetic . | . . . . . . . Thermal . | . . . . . . . Explosive . | . . . . . . . Electromagnetic . | . . . . . . . Robot Hit Streak . | . . . . . . . Robot Miss Streak . | . . . . . . . Penetration Max . | . . . . . . . Secondary Targets . | . . . . . . . Shots Hit Robots . | . . . . . . . Core Hits . | . . . . . . . Critical Kills . | . . . . . . . Critical Parts Destroyed . | . . . . . . . Critical Strikes . | . . . . . . . Melee Attacks . | . . . . . . . Impact . | . . . . . . . Slashing . | . . . . . . . Piercing . | . . . . . . . Sneak Attacks . | . . . . . . . Combat Hostiles . | . . . . . . . Follow-up Attacks . | . . . . . . . Damage Inflicted 68 | . . 15 3 . 40 10 Guns . | . . . . . . . Cannons . | . . . . . . . Explosions . | . . . . . . . Melee . | . . . . . . . Ramming 68 | . . 15 3 . 40 10 Kinetic . | . . . . . . . Thermal . | . . . . . . . Explosive . | . . . . . . . Electromagnetic . | . . . . . . . Impact . | . . . . . . . Slashing . | . . . . . . . Piercing . | . . . . . . . Highest Corruption 15 | . 2 2 . . . 15 Average Corruption 3 | . 2 2 . . . 9 Corruption Purged . | . . . . . . . Corruption Blocked . | . . . . . . . Effects 10 | . . 6 . . . 4 Message Errors 2 | . . 2 . . . . Matter Fused 3 | . . 2 . . . 1 Energy Discharges 3 | . . 2 . . . 1 Data Loss (minor) 1 | . . . . . . 1 Misdirections 1 | . . . . . . 1 Overload Shots . | . . . . . . . Overflow Damage . | . . . . . . . Projectiles . | . . . . . . . Explosions . | . . . . . . . Melee . | . . . . . . . Knockbacks . | . . . . . . . Impact . | . . . . . . . Kinetic . | . . . . . . . Secondary . | . . . . . . . Self-Inflicted Damage 53 | . . 7 1 . 40 5 Shots . | . . . . . . . Rammed 6 | . . 1 4 . . 1 Targets Rammed 6 | . . 1 4 . . 1 Kicked . | . . . . . . . Crushed . | . . . . . . . Highest Temperature 2 | . . 2 2 . . . Average Temperature 2 | . . 2 2 . . . Received Heat Transfer 183 | . . 57 126 . . . Siege Activations . | . . . . . . . Martial Activations . | . . . . . . . Shielding Activations . | . . . . . . . Robots Disrupted . | . . . . . . . Combat Hostiles . | . . . . . . . Robots Corrupted . | . . . . . . . Combat Hostiles . | . . . . . . . Parts Fried . | . . . . . . . Impact Corruptions . | . . . . . . . Robots Melted . | . . . . . . . Combat Hostiles . | . . . . . . . Parts Melted . | . . . . . . . Heat Transferred . | . . . . . . . Parts Sabotaged . | . . . . . . . Parts Stolen . | . . . . . . . Parts Stripped . | . . . . . . . Power Chain Reactions . | . . . . . . . Alert | -11 -10 -10 -9 -9 -9 -8 ------- Run | Yrd Mat Min Mat Min Exi Min Maximum Alert Level 1 | . . . 1 . . . Low Security (%) 99 | 100 100 100 98 100 . 100 Level 1 . | . . . 1 . . . Level 2 . | . . . . . . . Level 3 . | . . . . . . . Level 4 . | . . . . . . . Level 5 . | . . . . . . . High Security . | . . . . . . . Max Security . | . . . . . . . Peak Influence 214 | . . 68 214 83 . 45 Initial 83 | . . . 22 83 . . Average 37 | . . 6 88 81 . 11 Influence Increases 430 | . . 68 302 . . 60 Destroy 0b10 Robot/C 60 | . . 40 20 . . . Destroy Leader 20 | . . 10 10 . . . Allied During Kill 5 | . . 3 2 . . . Partial Spotted 60 | . . . 60 . . . Lose Combat Pursuer 285 | . . 15 210 . . 60 Influence Decreases 425 | . . 10 146 141 73 55 Entered New Map 240 | . . . 36 131 73 . Time Decay 165 | . . 10 110 10 . 35 Lost Part 20 | . . . . . . 20 Squads Dispatched 1 | . . . 1 . . . Investigation 1 | . . . 1 . . . Extermination . | . . . . . . . Reinforcement . | . . . . . . . Assault . | . . . . . . . Garrison . | . . . . . . . Intercept . | . . . . . . . Searches Triggered . | . . . . . . . Construction Impeded . | . . . . . . . Haulers Reinforced . | . . . . . . . Active Scanning Responses . | . . . . . . . Cargo Convoy Interrupts . | . . . . . . . Stealth | -11 -10 -10 -9 -9 -9 -8 --------- Run | Yrd Mat Min Mat Min Exi Min Distress Signals 1 | . . . 1 . . . Communications Jammed . | . . . . . . . Distress Signals . | . . . . . . . Times Spotted 36 | . . 2 29 . . 5 Peak Tracking Total 14 | . . 2 14 . 9 4 Tactical Retreats 8 | . . 1 5 . . 2 Traps | -11 -10 -10 -9 -9 -9 -8 ------- Run | Yrd Mat Min Mat Min Exi Min Traps Triggered 2 | . 1 . 1 . . . Indirectly . | . . . . . . . Trap Hack Attempts . | . . . . . . . Triggered . | . . . . . . . Disarmed . | . . . . . . . Reprogrammed . | . . . . . . . Reused . | . . . . . . . Traps Extracted . | . . . . . . . Installed . | . . . . . . . Triggered . | . . . . . . . Machines | -11 -10 -10 -9 -9 -9 -8 ---------- Run | Yrd Mat Min Mat Min Exi Min Machines Disabled 1 | . . . . . 1 . Max in Single Turn 1 | . . . . . 1 . Machines Repaired . | . . . . . . . Machines Dismantled . | . . . . . . . Machines Sabotaged . | . . . . . . . Overloaded Fab Kills . | . . . . . . . Hacking | -11 -10 -10 -9 -9 -9 -8 --------- Run | Yrd Mat Min Mat Min Exi Min Machines Accessed . | . . . . . . . Terminals . | . . . . . . . Fabricators . | . . . . . . . Repair Stations . | . . . . . . . Recycling Units . | . . . . . . . Scanalyzers . | . . . . . . . Garrison Access . | . . . . . . . Total Hacks . | . . . . . . . Successful . | . . . . . . . Failed . | . . . . . . . Catastrophic . | . . . . . . . Database Lockouts . | . . . . . . . Manual 1 | . . . . . 1 . Terminals . | . . . . . . . Fabricators . | . . . . . . . Repair Stations . | . . . . . . . Recycling Units . | . . . . . . . Scanalyzers . | . . . . . . . Garrison Access . | . . . . . . . Terminal Hacks . | . . . . . . . Fabricator Hacks . | . . . . . . . Repair Station Hacks . | . . . . . . . Recycling Unit Hacks . | . . . . . . . Scanalyzer . | . . . . . . . Garrison Access Hacks . | . . . . . . . Unauthorized Hacks . | . . . . . . . Terminals . | . . . . . . . Fabricators . | . . . . . . . Repair Stations . | . . . . . . . Recycling Units . | . . . . . . . Scanalyzers . | . . . . . . . Garrison Access . | . . . . . . . Data Cores Recovered . | . . . . . . . Used . | . . . . . . . Hacking Detections . | . . . . . . . Full Trace Events . | . . . . . . . Feedback Events . | . . . . . . . Feedback Blocked . | . . . . . . . Robot Schematics Acquired . | . . . . . . . Robots Built . | . . . . . . . Authchips . | . . . . . . . Time . | . . . . . . . Total Robot Build Rating . | . . . . . . . Part Schematics Acquired . | . . . . . . . Parts Built . | . . . . . . . Authchips . | . . . . . . . Time . | . . . . . . . Total Part Build Rating . | . . . . . . . Part Studies Acquired . | . . . . . . . Parts Repaired . | . . . . . . . Time . | . . . . . . . Parts Recycled . | . . . . . . . Recycled Matter . | . . . . . . . Retrieved Matter . | . . . . . . . Retrieved Components . | . . . . . . . Parts Scanalyzed . | . . . . . . . Part Schematics Acquired . | . . . . . . . Parts Damaged . | . . . . . . . Bothacking | -11 -10 -10 -9 -9 -9 -8 ------------ Run | Yrd Mat Min Mat Min Exi Min Used RIF Installer . | . . . . . . . Robots Hacked . | . . . . . . . Non-combat . | . . . . . . . Combat . | . . . . . . . Robot Hacks Applied . | . . . . . . . Relay Couplers Released . | . . . . . . . Fabnet Peak Effective % . | . . . . . . . Robots Rewired . | . . . . . . . Allies Hacked . | . . . . . . . Hacks Repelled . | . . . . . . . Allies | -11 -10 -10 -9 -9 -9 -8 -------- Run | Yrd Mat Min Mat Min Exi Min Total Allies 4 | . . 4 . . . . Largest Group 4 | . . 4 1 . . . Highest-Rated Group 71 | . . 71 31 . . . Highest-Rated Ally 31 | . . 31 31 . . . Total Orders . | . . . . . . . Ally Attacks 15 | . . 13 2 . . . Total Damage 189 | . . 168 21 . . . Kills 3 | . . 2 1 . . . Allies Corrupted . | . . . . . . . Allies Melted . | . . . . . . . Intel | -11 -10 -10 -9 -9 -9 -8 ------- Run | Yrd Mat Min Mat Min Exi Min Active Infowar (turns) . | . . . . . . . Robot Analysis Total . | . . . . . . . Derelict Logs Recovered 1 | . . 1 . . . . Drone Launches . | . . . . . . . Drone Recoveries . | . . . . . . . Exploration | -11 -10 -10 -9 -9 -9 -8 ------------- Run | Yrd Mat Min Mat Min Exi Min Turns Passed 777 | 10 21 277 236 22 85 126 Spaces Moved 1514 | 20 42 425 557 59 218 193 Core 598 | 20 42 425 66 . . 45 Treads . | . . . . . . . Legs . | . . . . . . . Wheels . | . . . . . . . Hover . | . . . . . . . Flight 916 | . . . 491 59 218 148 Fastest Speed 37 | 50 50 50 37 37 37 37 Average Speed 42 | 50 50 50 38 37 37 40 Slowest Speed 50 | 50 50 50 50 37 37 50 Overloaded Moves . | . . . . . . . Propulsion Burnouts . | . . . . . . . Robots Hopped 24 | . . . 20 . . 4 Potential Cave-ins . | . . . . . . . Cave-ins Triggered . | . . . . . . . Exploration Rate (%) 40 | 4 20 77 60 19 62 41 Regions Visited 6 Branch Regions 4 Pre-discovered Areas . | . . . . . . . Known Exits Taken . | . . . . . . . Unknown Exits Taken 6 | 1 1 1 1 1 1 . Scrap Searched 1 | . . 1 . . . . Spaces Dug . | . . . . . . . Terrain Destroyed . | . . . . . . . Melee . | . . . . . . . Projectile . | . . . . . . . AOE . | . . . . . . . Terrain Rammed 1 | . . . . . 1 . Walls Destroyed . | . . . . . . . Machines Disabled 1 | . . . . . 1 . Actions | -11 -10 -10 -9 -9 -9 -8 --------- Run | Yrd Mat Min Mat Min Exi Min Total 1620 | 19 41 488 556 58 220 238 Wait 118 | . . 62 8 . . 48 Move 1461 | 19 41 424 517 58 217 185 Hop 23 | . . . 19 . . 4 Pick Up . | . . . . . . . Fast Attach 4 | . . 1 1 . 2 . Attach . | . . . . . . . Detach . | . . . . . . . Swap 1 | . . . 1 . . . Drop . | . . . . . . . Fire . | . . . . . . . Melee . | . . . . . . . Ram 7 | . . 1 4 . 1 1 Kick . | . . . . . . . Crush . | . . . . . . . Escape Stasis . | . . . . . . . Rewire . | . . . . . . . Trap . | . . . . . . . Miscellaneous 6 | . . . 6 . . . Route ------- -11/Scrapyard -10/Materials -10/Mines (discovered 2 exits: [*Mat] / [*Sub]) -9/Materials (discovered 3 exits: *Mat x2 / [*Min]) -9/Mines (discovered 2 exits: *Mat / *Exi) -9/Exiles (discovered 2 exits: [*Min x2]) -8/Mines (discovered 1 exit: *Mat) History --------- Turn | Location | Event 3 | -11/Scrapyard | Discovered new exit (range 15) 11 | -11/Scrapyard | Entered Materials 24 | -10/Materials | Discovered new exit (range 15) 32 | -10/Materials | Entered Mines 78 | -10/Mines | Received a Mining Laser from a helpful Derelict 187 | -10/Mines | Learned 2 Materials zone layouts 206 | -10/Mines | Assisted by bots powering up and referring to "LRC-V3" 225 | -10/Mines | Discovered new exit (range 8) 267 | -10/Mines | Discovered new exit (range 5) 298 | -10/Mines | Lost 3 allies 307 | -10/Mines | Build established: Mutant 309 | -10/Mines | Entered Materials 309 | -9/Materials | Accompanied by 1 ally 310 | -9/Materials | Identified exit to Materials 311 | -9/Materials | Reached level 2 348 | -9/Materials | Upgraded with Propulsion slot (x1) 447 | -9/Materials | Discovered exit to Materials (range 7) 540 | -9/Materials | Discovered new exit (range 13) 545 | -9/Materials | Entered Mines 547 | -9/Mines | Reached level 3 549 | -9/Mines | Discovered exit to Materials (range 9) 565 | -9/Mines | Deemed a non-threat by the Exiles lab entrance 565 | -9/Mines | Discovered new exit (range 5) 567 | -9/Mines | Entered Exiles 573 | -9/Exiles | Discovered new exit (range 15) 577 | -9/Exiles | Met 8R-AWN 583 | -9/Exiles | Met EX-HEX 593 | -9/Exiles | Met EX-BIN 599 | -9/Exiles | Aligned with FarCom system 599 | -9/Exiles | Given EX-Vault access code 607 | -9/Exiles | Opened EX-Vault 611 | -9/Exiles | Found Prototype Storage 611 | -9/Exiles | Identified Superbattery 613 | -9/Exiles | Found Prototype Special Weapon 613 | -9/Exiles | Identified Field Lobotomy Kit 621 | -9/Exiles | Warned to stay clear of 0b10 Research branches 632 | -9/Exiles | Met EX-DEC 639 | -9/Exiles | Attacked by the Exiles 639 | -9/Exiles | Core integrity fell below 50% 649 | -9/Exiles | Discovered new exit (range 10) 652 | -9/Exiles | Stole two prototypes: Superbattery, Field Lobotomy Kit 652 | -9/Exiles | Entered Mines 690 | -8/Mines | Discovered exit to Materials (range 3) 708 | -8/Mines | NK-0LA came to Exiles' defense 710 | -8/Mines | Core integrity fell below 20% 743 | -8/Mines | System corruption reached 10% 778 | -8/Mines | Destroyed by NK-0LA with NK-0LA's Tesla Doomcannon Last Messages --------------- 00751_ Wall collapses. 00752_ K-01 Serf collects debris. 00756_ Slug penetrates Wall. 00756_ K-01 Serf collects debris. 00759_ Slug penetrates NK-0LA. 00760_ K-01 Serf collects debris. 00762_ Slug penetrates NK-0LA. 00764_ K-01 Serf collects debris. 00768_ System corrupted: Component data lost. 00768_ K-01 Serf collects debris. 00771_ K-01 Serf destroyed. 00771_ K-01 Serf collects debris. 00773_ R-06 Scavenger collects Corrupted Lgt. Ion Engine. 00773_ R-06 Scavenger destroyed. 00773_ Chain reaction triggered in Lgt. Ion Engine. 00773_ K-01 Serf destroyed. 00777_ Slug penetrates NK-0LA. 00778_ R-06 Scavenger collects Wheel. 00778_ Chain reaction triggered in Lgt. Ion Engine. 00778_ R-06 Scavenger destroyed. Map ----- +----------------------------------------------------+ | ??????????????????????????????????????????? | | ??????????????????????????????????????????? | | ??????????????????????????????????????????? | | ??????????????????????????????????????????? | | ??????????????????????????????????????????? | | ??????????????????????????????????????????? | | ??????????????????????????????????????????? | | ??????????????????????????????????????????? | | ??????????????????????????????????????????? | | ??????????????????????????????????????????? | | ??????????????????????????????????????????? | | ??????????????????????????????????????????? | | ??????????????????????????????????????????? | | ###???????????????????????????????????????? | | ###?????????????????????????????????????? | | ##????????????????????????????????????? | | ####?????????????????????????????????? | | #?????????????????????????????????? | | ##?????????????????????????????????? | | ###??????????????????????????????????? | | ##????????????????????????????????????? | | #??????????????????####???????????????? | | #??????????????????# ????????????????? | | # ##??????????????????# #????????????????? | | # ##??????????????????## ####?????????????? | | # ###???????????????### @ #?????????????? | | # #######????????## #?????????????? | | ### #???????## ##?????????????? | | ??# ####" #???????# ##??????????????? | | #"" "???# #??????## ##???????????????? | | % "#??# #????### ####????????????????? | | #"" "#??# ##??## ##???????????????????? | | ### ##### ###" = ##????????????????????? | | # % # =% ##?????????????????????? | | # ==x | ##??????????????????????? | | ##### =% * #???????????????????????? | | ?? ????## #??????????????????????? | | ?##?????## #?????????????????????? | | ?????????#### ??????????????????? | | ????????????## ### ???????????????? | | ?????????????####??# ???????????????? | | ????????????????????# ## ??????????????? | | ?????????????????????#####????????????????? | | ??????????????????????????????????????????? | | ??????????????????????????????????????????? | | ??????????????????????????????????????????? | | ??????????????????????????????????????????? | | ??????????????????????????????????????????? | | ??????????????????????????????????????????? | | ??????????????????????????????????????????? | +----------------------------------------------------+ Best States ------------- Heat Dissipation 25 Energy Generation 5 Energy Capacity 1600 Matter Stores 202 Matter Capacity 300 Sight Range 16 Terrain Scan Density 10 Evasion (%) 62 Item Schematics ----------------- None Robot Schematics ------------------ None Fabricated ------------ Nothing Repaired ---------- Nothing Studied --------- None Alien Tech Used ----------------- None Achievements -------------- None Challenges ------------ None RPGLIKE | -11 -10 -10 -9 -9 -9 -8 --------- Run | Yrd Mat Min Mat Min Exi Min Levels Raised 2 | . . . 1 1 . . XP Earned 6895 | 3000 . 879 1666 500 350 500 XP Spent 5985 | . . . 500 . 700 4785 Upgrades 32 | . . . 1 . 2 29 Propulsion Slot 1 | . . . 1 . . . Core Integrity 29 | . . . . . . 29 Mass Support 2 | . . . . . 2 . Protomatter Created . | . . . . . . . Integrity Restored 125 | . . . 125 . . . Core 125 | . . . 125 . . . Protomatter Decayed . | . . . . . . . Game ------ Seed ZipFusionParser Manual? 0 Play Time 00:06:57 Cumulative 660.6 hours Start 2026.07.14 @ 13:00:04 End 2026.07.14 @ 13:08:13 Sessions 1 Manual Loads 0 Difficulty Rogue Special Mode Winter2019/RPGLIKE Game No. 273 Rogue 119 Adventurer 154 Explorer 0 Win Type - Total 22 Types 4/5/4/3/2/1/0/1/1/1 Lore% 95 Gallery% 88 Achievement% 68 Wizard Run 0 Options --------- Layout 0 ASCII 0 Keyboard 0 Movement Numpad Keybinds 0 Fullscreen 2 Font 18/SmallcapsGlow Map View 76x50 Zoom Use 0% Tactical HUD 1 Map Filters NONE Filters NONE Steam 1 RUN: 7a2a1b9f-f3fc-4bd9-9016-3424c4376b31